bitfinex/quotes_SOLUSD_20240813
["timestamp","ask_amount","ask_price","bid_price","bid_amount"]
[1723519228529,47.94,145.68,145.63,5.4932]
[1723519228716,47.94,145.68,145.6,5.4944]
[1723519228896,47.94,145.68,145.61,0.37647]
[1723519228897,5.4922,145.66,145.61,0.37647]
[1723519229090,47.94,145.68,145.62,5.4936]
[1723519229398,47.94,145.68,145.63,0.12549]
[1723519229703,47.94,145.68,145.63,50.74428]
[1723519229918,53.4306,145.71,145.65,5.4923]
[1723519230216,53.4306,145.71,145.64,0.25098]
[1723519230217,16.127,145.72,145.67,5.4917]
[1723519230395,16.127,145.72,145.68,0.12549]
[1723519230594,16.127,145.72,145.67,5.4917]
[1723519230889,16.127,145.72,145.68,0.12549]
[1723519231201,54.1877,145.81,145.71,5.4902]
[1723519231202,53.4281,145.77,145.71,5.4902]
[1723519231393,5.4886,145.76,145.7,5.4906]
[1723519231625,53.4281,145.77,145.71,0.25098]
[1723519231792,47.94,145.77,145.71,0.37647]
[1723519231998,15.0827,145.79,145.74,5.4892]
[1723519232314,53.4262,145.82,145.75,0.12549]
[1723519232512,47.94,145.82,145.76,0.12549]
[1723519232700,47.94,145.82,145.77,5.488]
[1723519233198,53.4263,145.82,145.75,0.25098]
[1723519233399,53.4263,145.82,145.74,0.37647]
[1723519233400,47.94,145.82,145.74,0.37647]
[1723519233600,47.94,145.79,145.72,0.12549]
[1723519233803,5.4881,145.77,145.72,0.50196]
[1723519234119,47.94,145.79,145.72,0.50196]
[1723519234295,5.4884,145.76,145.71,5.4903]
[1723519234626,47.94,145.74,145.67,5.4918]
[1723519234950,47.94,145.74,145.61,6.5915]
[1723519235029,47.94,145.77,145.61,6.5915]
[1723519235327,47.94,145.74,145.61,6.5915]
[1723519235508,53.4307,145.71,145.65,5.4923]
[1723519235698,53.4307,145.71,145.53,47.94]
[1723519235699,5.4911,145.69,145.64,5.4929]
[1723519235926,47.94,145.68,145.6,5.4943]
[1723519236133,47.94,145.65,145.55,6.6075]
[1723519236325,47.94,145.65,145.58,5.4949]
[1723519236326,5.4932,145.64,145.58,5.4949]
[1723519236712,5.4932,145.64,145.59,5.4947]
[1723519237111,47.94,145.62,145.51,7.14638397]
[1723519237425,53.434,145.62,145.56,5.4956]
[1723519237797,53.434,145.62,145.49,6.2713]
[1723519237798,47.94,145.62,145.49,6.2713]
[1723519238004,5.4957,145.57,145.51,5.4978]
[1723519238231,53.435,145.59,145.52,5.4974]
[1723519238399,53.435,145.59,145.47,7.16336]
[1723519238597,47.94,145.59,145.56,5.4959]
[1723519239115,47.94,145.59,145.55,5.4963]
[1723519239928,47.94,145.59,145.47,7.16336]
[1723519240125,47.94,145.59,145.48,45.25098]
[1723519240332,47.94,145.59,145.47,8.38199915]
[1723519240514,53.4352,145.59,145.53,5.4971]
[1723519240921,47.94,145.59,145.47,7.16336]
[1723519241208,47.94,145.59,145.48,21.21901608]
[1723519241423,5.4949,145.59,145.53,5.4968]
[1723519241708,16.3198,145.61,145.52,5.4974]
[1723519241709,47.94,145.57,145.52,5.4974]
[1723519242029,47.94,145.57,145.47,7.3299486]
[1723519242030,53.4356,145.57,145.47,7.3299486]
[1723519242332,5.4964,145.55,145.47,7.3299486]
[1723519242542,53.437,145.54,145.47,7.3299486]
[1723519242839,5.4971,145.53,145.48,5.499]
[1723519243008,47.94,145.51,145.47,0.1665886]
[1723519243731,5.4983,145.5,145.47,0.1665886]
[1723519244097,47.94,145.51,145.47,0.1665886]
[1723519244303,47.94,145.53,145.48,5.4989]
[1723519244524,53.4374,145.53,145.47,5.6658886]
[1723519244741,47.94,145.53,145.48,5.4986]
[1723519245037,47.94,145.53,145.47,0.1665886]
[1723519245333,5.4982,145.51,145.47,0.1665886]
[1723519245632,5.4979,145.51,145.47,0.1665886]
[1723519245827,5.4979,145.51,145.42,7.141956]
[1723519245828,5.5004,145.45,145.42,7.141956]
[1723519246034,47.94,145.46,145.3,47.94]
[1723519246205,53.4389,145.49,145.36,7.141956]
[1723519246406,53.4387,145.49,145.36,14.28570491]
[1723519246610,5.499,145.48,145.36,15.61066486]
[1723519246876,5.499,145.48,145.36,14.28570491]
[1723519247131,5.4995,145.47,145.36,14.28570491]
[1723519247337,47.94,145.49,145.36,14.28570491]
[1723519247513,5.4992,145.48,145.37,20.0]
[1723519247712,5.4994,145.47,145.37,20.0]
[1723519248040,15.079,145.5,145.37,20.0]
[1723519248250,53.4371,145.53,145.37,21.32428704]
[1723519248415,5.496,145.56,145.4,6.2722]
[1723519248611,5.496,145.56,145.41,21.32395538]
[1723519248946,63.019,145.57,145.42,92.94]
[1723519249121,5.4974,145.53,145.43,20.0]
[1723519249318,63.019,145.57,145.44,45.37647]
[1723519249533,5.4969,145.54,145.46,0.12549]
[1723519249713,63.019,145.57,145.46,45.37647]
[1723519249917,1.62530943,145.56,145.47,0.12549]
[1723519250109,63.019,145.57,145.48,0.12549]
[1723519250325,5.496,145.56,145.48,0.25098]
[1723519250572,68.5147,145.57,145.49,0.12549]
[1723519250741,68.5147,145.57,145.5,0.12549]
[1723519251061,68.5147,145.57,145.49,0.37647]
[1723519251336,5.4964,145.55,145.49,0.12549]
[1723519252134,5.4968,145.54,145.49,0.12549]
[1723519252736,63.019,145.57,145.49,0.12549]
[1723519253122,63.019,145.57,145.49,0.25098]
[1723519253324,63.019,145.57,145.5,0.12549]
[1723519253623,63.019,145.57,145.49,0.25098]
[1723519253940,5.4962,145.56,145.49,0.25098]
[1723519254130,5.4964,145.55,145.49,0.12549]
[1723519254333,5.4967,145.54,145.49,0.12549]
[1723519254537,5.4965,145.55,145.49,0.12549]
[1723519254851,63.019,145.57,145.49,0.25098]
[1723519255032,47.94,145.6,145.51,0.12549]
[1723519255216,63.019,145.63,145.51,0.25098]
[1723519255424,5.4945,145.6,145.51,0.25098]
[1723519255631,1.62530943,145.59,145.52,0.12549]
[1723519255921,5.4955,145.58,145.53,0.12549]
[1723519256317,5.4949,145.59,145.53,0.37647]
[1723519257537,53.4346,145.6,145.53,0.37647]
[1723519257758,63.019,145.63,145.53,0.37647]
[1723519257918,63.019,145.63,145.54,0.12549]
[1723519258120,5.4945,145.6,145.54,0.25098]
[1723519259218,5.4941,145.61,145.54,0.25098]
[1723519260532,5.4945,145.6,145.54,0.25098]
[1723519260733,63.019,145.63,145.55,0.25098]
[1723519260931,63.019,145.63,145.56,0.12549]
[1723519261135,63.019,145.63,145.54,0.12549]
[1723519261359,63.019,145.63,145.53,0.25098]
[1723519261360,5.4953,145.58,145.53,0.25098]
[1723519261655,53.4346,145.6,145.53,0.25098]
[1723519262021,63.019,145.63,145.53,0.25098]
[1723519262348,1.62530943,145.62,145.54,0.12549]
[1723519262515,1.62530943,145.62,145.53,0.25098]
[1723519262844,47.94,145.6,145.53,0.25098]
[1723519263045,47.94,145.57,145.42,47.94]
[1723519263257,47.94,145.57,145.43,1.37429275]
[1723519263424,47.94,145.57,145.42,47.94]
[1723519263425,5.4964,145.55,145.42,47.94]
[1723519263825,49.56530943,145.54,145.36,263.641956]
[1723519264036,47.94,145.51,145.36,311.581956]
[1723519264332,47.94,145.51,145.36,7.141956]
[1723519264333,47.94,145.48,145.36,7.141956]
[1723519264528,47.94,145.45,145.36,7.141956]
[1723519264844,47.94,145.45,145.35,0.8239636]
[1723519265148,15.8143,145.51,145.35,7.9659196]
[1723519265149,47.94,145.48,145.35,7.9659196]
[1723519266036,5.4995,145.47,145.35,7.9659196]
[1723519266355,47.94,145.48,145.35,7.9659196]
[1723519266717,47.94,145.48,145.36,1.37500447]
[1723519267128,47.94,145.48,145.36,21.37500447]
[1723519267337,47.94,145.48,145.36,1.37500447]
[1723519267533,53.4391,145.48,145.37,0.12549]
[1723519267769,47.94,145.48,145.37,0.50196]
[1723519267925,5.4998,145.46,145.36,20.0]
[1723519268132,47.94,145.48,145.36,21.37519685]
[1723519268331,69.2522,145.51,145.36,21.37519685]
[1723519268525,5.4983,145.5,145.36,21.37519685]
[1723519268830,47.94,145.48,145.36,20.0]
[1723519269363,5.4994,145.47,145.36,20.0]
[1723519269663,16.4461,145.58,145.36,69.3150865]
[1723519269828,47.94,145.53,145.36,69.3150865]
[1723519270032,5.4963,145.55,145.39,47.94]
[1723519270244,5.4963,145.55,145.4,21.37443193]
[1723519270439,5.4968,145.54,145.4,21.37443193]
[1723519270763,5.4968,145.54,145.41,45.50196]
[1723519270955,47.94,145.56,145.43,0.12549]
[1723519271268,47.94,145.56,145.43,45.50196]
[1723519271546,47.94,145.56,145.45,0.12549]
[1723519271751,47.94,145.56,145.45,0.25098]
[1723519271948,47.94,145.56,145.46,0.12549]
[1723519272261,47.94,145.56,145.47,0.12549]
[1723519272430,47.94,145.56,145.47,0.25098]
[1723519272754,53.4372,145.53,145.47,0.12549]
[1723519272936,47.94,145.53,145.47,0.12549]
[1723519273136,16.4461,145.58,145.47,0.12549]
[1723519273450,16.4461,145.58,145.47,45.12549]
[1723519273656,16.4461,145.58,145.49,0.12549]
[1723519274150,5.4965,145.55,145.49,0.12549]
[1723519274446,5.4952,145.58,145.49,0.12549]
[1723519274663,47.94,145.59,145.49,0.12549]
[1723519274860,5.4959,145.57,145.49,0.12549]
[1723519275228,47.94,145.59,145.49,0.12549]
[1723519275440,15.7112,145.64,145.49,0.12549]
[1723519275441,53.4338,145.62,145.49,0.12549]
[1723519275843,47.94,145.62,145.49,45.12549]
[1723519276043,47.94,145.62,145.51,0.12549]
[1723519276245,53.434,145.62,145.51,0.12549]
[1723519276452,47.94,145.62,145.51,0.12549]
[1723519276755,47.94,145.59,145.51,45.12549]
[1723519276955,47.94,145.59,145.52,0.37647]
[1723519277337,15.5192,145.71,145.53,0.12549]
[1723519277543,5.4935,145.63,145.53,0.12549]
[1723519277854,5.4933,145.64,145.53,45.12549]
[1723519278045,5.4933,145.64,145.54,0.37647]
[1723519278361,5.4927,145.65,145.55,0.12549]
[1723519278731,5.493,145.64,145.55,0.12549]
[1723519278934,47.94,145.63,145.55,0.12549]
[1723519279163,5.4938,145.62,145.55,0.12549]
[1723519279367,53.4334,145.63,145.55,0.12549]
[1723519279541,47.94,145.63,145.55,0.12549]
[1723519280048,53.4334,145.63,145.55,0.12549]
[1723519280247,47.94,145.63,145.55,0.12549]
[1723519280954,5.4937,145.62,145.55,0.12549]
[1723519281353,47.94,145.63,145.47,0.65310896]
[1723519281643,47.94,145.63,145.41,5.9644]
[1723519281644,5.4975,145.53,145.41,5.9644]
[1723519282001,5.4972,145.53,145.41,5.9644]
[1723519282240,53.4368,145.54,145.47,1.37368113]
[1723519282541,47.94,145.48,145.4,6.038]
[1723519282736,47.94,145.48,145.34,12.0024]
[1723519282934,5.5008,145.44,145.34,19.1440229]
[1723519283168,5.5001,145.46,145.34,19.1440229]
[1723519283373,47.94,145.48,145.34,19.1440229]
[1723519283536,5.5009,145.43,145.34,13.1796229]
[1723519283866,5.5005,145.44,145.38,5.5024]
[1723519284035,47.94,145.48,145.35,0.8239636]
[1723519284451,47.94,145.48,145.35,2.19909269]
[1723519284693,47.94,145.48,145.35,0.8239636]
[1723519284880,5.5016,145.42,145.35,0.8239636]
[1723519285060,5.5018,145.41,145.35,0.8239636]
[1723519285454,5.5012,145.43,145.35,0.8239636]
[1723519285855,5.5012,145.43,145.37,5.5028]
[1723519286054,5.5013,145.42,145.35,6.3275636]
[1723519286256,53.4416,145.42,145.35,0.8239636]
[1723519286969,53.4416,145.42,145.36,5.5035]
[1723519287152,53.4416,145.42,145.37,5.5031]
[1723519287765,1.62530943,145.41,145.35,0.8239636]
[1723519288119,47.94,145.42,145.35,0.8239636]
[1723519288264,5.502,145.4,145.35,0.8239636]
[1723519288579,5.5024,145.39,145.35,0.8239636]
[1723519289374,5.5021,145.4,145.35,0.8239636]
[1723519289561,5.5017,145.41,145.35,6.3277636]
[1723519290256,5.5017,145.41,145.36,5.5035]
[1723519290659,5.5022,145.4,145.35,0.8239636]
[1723519290867,47.94,145.46,145.36,0.37647]
[1723519291178,5.5006,145.44,145.36,0.37647]
[1723519291359,47.94,145.46,145.36,0.37647]
[1723519291562,47.94,145.46,145.37,0.25098]
[1723519291910,5.5002,145.45,145.39,0.12549]
[1723519292079,5.5006,145.44,145.39,5.75338]
[1723519292256,47.94,145.49,145.41,0.12549]
[1723519292458,47.94,145.49,145.44,5.5004]
[1723519292659,5.4991,145.48,145.41,0.12549]
[1723519292849,5.4995,145.47,145.41,0.37647]
[1723519293070,47.94,145.49,145.41,0.37647]
[1723519293273,53.4387,145.49,145.42,0.12549]
[1723519293460,5.5,145.46,145.42,0.12549]
[1723519293658,47.94,145.49,145.4,45.0]
[1723519293659,5.5003,145.45,145.4,45.0]
[1723519293864,1.62530943,145.44,145.35,0.8239636]
[1723519294158,61.6896,145.46,145.35,0.8239636]
[1723519294355,53.4398,145.46,145.35,0.8239636]
[1723519294562,5.4994,145.47,145.35,0.8239636]
[1723519295072,5.4994,145.47,145.36,0.25098]
[1723519295271,5.4994,145.47,145.38,0.12549]
[1723519295471,5.4999,145.46,145.38,0.25098]
[1723519295669,47.94,145.46,145.39,0.25098]
[1723519295876,47.94,145.46,145.39,0.12549]
[1723519296180,47.94,145.46,145.35,0.8239636]
[1723519296383,5.5004,145.45,145.35,0.8239636]
[1723519296558,5.5006,145.44,145.35,0.8239636]
[1723519296972,47.94,145.46,145.35,0.8239636]
[1723519297178,47.94,145.46,145.36,0.25098]
[1723519297383,47.94,145.46,145.37,0.25098]
[1723519297693,283.4857,145.56,145.4,0.12549]
[1723519297694,5.4987,145.49,145.4,0.12549]
[1723519297859,5.4983,145.5,145.4,0.37647]
[1723519298060,5.4983,145.5,145.41,0.12549]
[1723519298260,5.4986,145.49,145.42,0.12549]
[1723519298784,5.4991,145.48,145.42,0.25098]
[1723519298989,63.515,145.53,145.42,0.25098]
[1723519298990,5.5,145.46,145.42,0.25098]
[1723519299287,5.5,145.46,145.42,0.12549]
[1723519299486,47.94,145.5,145.4,45.0]
[1723519299691,61.6862,145.5,145.41,0.12549]
[1723519300183,47.94,145.5,145.41,1.37456793]
[1723519300384,47.94,145.5,145.4,45.0]
[1723519300385,5.5001,145.46,145.4,45.0]
[1723519300598,5.5001,145.46,145.41,0.12549]
[1723519300787,5.5001,145.46,145.41,0.37647]
[1723519301495,5.5026,145.39,145.34,6.1258]
[1723519301679,47.94,145.41,145.28,6.3558]
[1723519301872,5.5024,145.4,145.35,6.3275636]
[1723519302075,47.94,145.44,145.39,5.5022]
[1723519302476,53.4408,145.44,145.39,5.5022]
[1723519302689,47.94,145.47,145.35,0.8239636]
[1723519302996,53.4397,145.47,145.35,0.8239636]
[1723519303162,5.4997,145.47,145.36,0.50196]
[1723519303585,5.4998,145.46,145.36,0.50196]
[1723519304101,47.94,145.5,145.38,0.12549]
[1723519304431,5.4993,145.48,145.41,0.12549]
[1723519304566,5.4993,145.48,145.41,65.50196]
[1723519304895,5.4993,145.48,145.41,45.50196]
[1723519305262,47.94,145.53,145.43,0.12549]
[1723519305466,257.4,145.55,145.43,0.50196]
[1723519305660,67.94,145.6,145.43,0.50196]
[1723519305661,47.94,145.56,145.45,0.12549]
[1723519305893,47.94,145.56,145.45,1.87611332]
[1723519306062,47.94,145.56,145.45,0.50196]
[1723519306265,5.4964,145.55,145.45,0.50196]
[1723519306470,53.436,145.56,145.45,0.50196]
[1723519306767,5.496,145.56,145.45,0.50196]
[1723519307192,5.4956,145.57,145.45,0.50196]
[1723519307424,5.496,145.56,145.45,0.50196]
[1723519307596,5.496,145.56,145.45,20.50196]
[1723519307781,5.496,145.56,145.47,0.12549]
[1723519307976,5.496,145.56,145.47,0.50196]
[1723519308304,5.4952,145.58,145.49,0.12549]
[1723519308474,47.94,145.6,145.49,0.50196]
[1723519308475,5.496,145.56,145.49,0.50196]
[1723519308875,29.7159,145.59,145.49,0.50196]
[1723519309086,47.94,145.57,145.49,0.50196]
[1723519309283,15.9781,145.59,145.49,0.50196]
[1723519309483,13.7387,145.58,145.49,0.50196]
[1723519309681,47.94,145.55,145.46,45.0]
[1723519311374,5.4978,145.52,145.46,45.0]
[1723519311677,5.4985,145.5,145.4,6.3558]
[1723519311880,47.94,145.52,145.4,6.3558]
[1723519312385,53.4378,145.52,145.41,1.12568297]
[1723519312793,5.4987,145.49,145.4,6.3558]
[1723519312971,5.4987,145.49,145.41,1.32663209]
[1723519313177,5.4983,145.5,145.42,0.25098]
[1723519313401,5.4979,145.51,145.42,1.57878373]
[1723519313893,5.4982,145.5,145.42,1.57878373]
[1723519314099,5.4989,145.49,145.42,0.25098]
[1723519314401,5.499,145.48,145.44,0.12549]
[1723519314820,5.4987,145.49,145.44,0.12549]
[1723519314979,5.4983,145.5,145.44,0.12549]
[1723519315195,5.4989,145.49,145.44,0.25098]
[1723519315476,47.94,145.52,145.45,0.12549]
[1723519315698,47.94,145.49,145.35,7.3406636]
[1723519316007,39.8,145.45,145.35,7.3406636]
[1723519316996,39.8,145.45,145.36,20.0]
[1723519317298,5.4998,145.46,145.36,20.0]
[1723519317476,5.4998,145.46,145.37,45.50196]
[1723519317682,5.4998,145.46,145.39,0.12549]
[1723519317974,5.4998,145.46,145.39,45.50196]
[1723519318175,45.2994,145.47,145.39,45.50196]
[1723519319194,39.8,145.44,145.39,1.375294]
[1723519319403,5.5001,145.45,145.36,1.37538828]
[1723519319782,45.2999,145.46,145.36,1.37538828]
[1723519320106,5.5006,145.44,145.35,7.3406636]
[1723519320298,5.4978,145.52,145.38,0.12549]
[1723519320503,5.4978,145.52,145.38,1.87678351]
[1723519320803,39.8,145.53,145.39,1.3746178]
[1723519321098,39.8,145.53,145.41,0.12549]
[1723519321099,5.4985,145.5,145.41,0.12549]
[1723519321312,5.4986,145.49,145.41,0.12549]
[1723519321485,39.8,145.5,145.41,0.12549]
[1723519321693,5.4991,145.48,145.41,0.12549]
[1723519321922,5.4994,145.47,145.41,0.12549]
[1723519322221,45.2983,145.5,145.41,1.49796081]
[1723519322521,5.4975,145.52,145.43,0.12549]
[1723519322736,13.7386,145.58,145.43,1.62279018]
[1723519323023,5.4964,145.55,145.44,0.12549]
[1723519323396,5.4968,145.54,145.45,0.12549]
[1723519323606,5.4975,145.52,145.45,0.37647]
[1723519323844,5.4987,145.49,145.45,0.37647]
[1723519324101,5.4991,145.48,145.41,20.0]
[1723519324335,5.4991,145.48,145.38,20.0]
[1723519324623,39.8,145.5,145.34,39.8]
[1723519324829,5.5,145.46,145.34,39.8]
[1723519325018,39.8,145.47,145.34,39.8]
[1723519325207,39.8,145.44,145.31,5.9644]
[1723519325426,39.8,145.44,145.35,7.3406636]
[1723519325427,5.5013,145.42,145.35,7.3406636]
[1723519325592,39.8,145.44,145.35,7.3406636]
[1723519325799,5.502,145.4,145.35,0.8239636]
[1723519326411,5.5024,145.39,145.35,0.8239636]
[1723519326914,47.78,145.42,145.37,5.5029]
[1723519327128,5.5009,145.43,145.37,5.5029]
[1723519327325,5.5014,145.42,145.36,5.5035]
[1723519327521,5.5017,145.41,145.35,6.3277636]
[1723519327823,47.78,145.46,145.36,0.93834038]
[1723519328318,5.5002,145.45,145.4,5.5019]
[1723519328524,47.78,145.46,145.41,5.5015]
[1723519328731,47.78,145.49,145.4,0.12549]
[1723519328893,53.2789,145.49,145.4,0.12549]
[1723519329096,47.78,145.49,145.4,0.12549]
[1723519329325,5.4998,145.46,145.4,0.12549]
[1723519329707,5.5002,145.45,145.4,0.12549]
[1723519329907,5.4999,145.46,145.4,0.12549]
[1723519330225,5.4999,145.46,145.35,0.8239636]
[1723519330226,47.78,145.46,145.35,0.8239636]
[1723519330539,47.78,145.43,145.35,0.8239636]
[1723519330738,5.5035,145.36,145.35,0.8239636]
[1723519331028,53.2832,145.37,145.35,0.8239636]
[1723519331333,47.78,145.4,145.35,0.8239636]
[1723519331511,20.0,145.39,145.35,0.8239636]
[1723519331699,5.5035,145.37,145.35,0.8239636]
[1723519332029,20.0,145.39,145.35,0.8239636]
[1723519332208,5.5035,145.36,145.35,0.8239636]
[1723519332598,25.5035,145.36,145.35,0.8239636]
[1723519333026,5.5035,145.36,145.35,0.8239636]
[1723519333806,53.2832,145.37,145.35,0.8239636]
[1723519334006,5.5032,145.37,145.35,0.8239636]
[1723519334220,47.78,145.39,145.35,0.8239636]
[1723519334221,5.5035,145.36,145.35,0.8239636]
[1723519335815,5.5028,145.38,145.35,0.8239636]
[1723519336010,5.5029,145.38,145.35,0.8239636]
[1723519336218,47.78,145.46,145.36,1.50017712]
[1723519336420,5.5002,145.45,145.4,5.502]
[1723519337448,47.78,145.46,145.39,0.37647]
[1723519337602,47.78,145.46,145.4,0.12549]
[1723519337807,257.4,145.51,145.17,11.02913881]
[1723519337808,16.1182,145.38,145.17,11.02913881]
[1723519338118,16.1182,145.38,145.06,0.8239636]
[1723519338119,5.5145,145.07,145.06,0.8239636]
[1723519338434,5.518,144.98,144.97,77.98509992]
[1723519338664,5.64349,144.98,144.97,55.26770168]
[1723519338807,85.37647,144.98,144.81,81.1025]
[1723519339007,5.5228,144.86,144.78,15.1797]
[1723519339213,13.802,144.91,144.79,5.5249]
[1723519339214,5.5223,144.87,144.79,5.5249]
[1723519339405,0.12549,144.92,144.78,62.9597]
[1723519339634,41.393,144.96,144.78,62.9597]
[1723519339635,0.12549,144.96,144.84,13.8082]
[1723519339943,20.0,144.93,144.79,13.8121]
[1723519340109,20.0,144.93,144.79,0.2465056]
[1723519340110,1.72580593,144.92,144.79,0.2465056]
[1723519340313,5.5226,144.86,144.79,0.2465056]
[1723519340500,1.72648851,144.85,144.79,0.2465056]
[1723519340704,0.12549,144.84,144.79,0.2465056]
[1723519341138,0.25098,144.84,144.79,0.2465056]
[1723519341317,5.5238,144.83,144.79,0.2465056]
[1723519341511,71.3124,144.85,144.79,0.2465056]
[1723519341512,20.0,144.85,144.79,0.2465056]
[1723519341713,20.0,144.85,144.79,5.7715056]
[1723519341920,5.5208,144.91,144.79,0.2465056]
[1723519342133,20.0,144.9,144.79,0.2465056]
[1723519342437,25.5211,144.9,144.79,0.2465056]
[1723519342620,1.7259536,144.89,144.8,5.5246]
[1723519343015,20.0,144.94,144.82,47.78]
[1723519343212,20.0,144.94,144.81,0.12549]
[1723519343213,5.5188,144.96,144.88,5.5216]
[1723519343550,1.72543201,145.02,144.87,0.12549]
[1723519343844,67.78,145.03,144.88,0.12549]
[1723519343845,1.72523418,145.01,144.88,0.12549]
[1723519344016,5.5181,144.98,144.9,5.5209]
[1723519344218,5.5184,144.97,144.89,13.8034]
[1723519344643,7.24429681,144.96,144.87,5.64759]
[1723519344810,1.72541578,145.0,144.87,5.64759]
[1723519345013,5.519,144.96,144.88,0.37647]
[1723519345317,25.5193,144.95,144.88,5.89817]
[1723519345616,7.24478827,144.94,144.88,0.37647]
[1723519346337,5.5195,144.94,144.88,0.37647]
[1723519346717,20.0,144.95,144.88,5.89817]
[1723519346918,5.5201,144.93,144.88,0.37647]
[1723519347135,25.5194,144.95,144.88,0.37647]
[1723519347642,25.5194,144.95,144.88,5.89817]
[1723519347807,25.5194,144.95,144.89,5.64669]
[1723519348010,20.0,144.95,144.89,0.12549]
[1723519348237,5.519,144.96,144.89,5.64679]
[1723519348544,20.0,144.95,144.88,0.12549]
[1723519348749,25.5192,144.95,144.89,5.5214]
[1723519349039,20.0,144.95,144.9,0.12549]
[1723519349231,5.5192,144.95,144.89,5.5214]
[1723519349534,20.0,144.94,144.84,16.0928]
[1723519349737,49.50520449,144.94,144.84,16.0928]
[1723519349943,21.72578775,144.93,144.84,16.0928]
[1723519350252,1.7258537,144.92,144.74,15.8762]
[1723519350449,65.25098,144.93,144.82,13.8097]
[1723519350739,5.521,144.9,144.82,13.8097]
[1723519351045,21.72580926,144.89,144.82,19.3334]
[1723519351238,20.0,144.93,144.82,19.3334]
[1723519351239,20.0,144.88,144.82,13.8097]
[1723519351536,1.72562513,144.92,144.82,47.78]
[1723519351753,20.0,144.93,144.86,5.5225]
[1723519351941,5.5215,144.89,144.84,13.8074]
[1723519352244,25.5221,144.88,144.8,13.8118]
[1723519352445,492.56537127,144.87,144.8,13.8118]
[1723519352745,492.56537127,144.87,144.79,0.2465056]
[1723519352746,5.5241,144.82,144.79,0.2465056]
[1723519352945,20.0,144.86,144.79,0.2465056]
[1723519353353,5.5243,144.82,144.79,0.2465056]
[1723519353843,460.94542716,144.86,144.79,5.7717056]
[1723519354027,5.5237,144.83,144.79,0.2465056]
[1723519354232,5.5248,144.81,144.79,0.2465056]
[1723519354528,5.5245,144.81,144.79,0.2465056]
[1723519354743,421.91642716,144.85,144.79,0.2465056]
[1723519355041,5.5241,144.82,144.79,0.2465056]
[1723519355252,5.5248,144.8,144.79,0.2465056]
[1723519355457,26.79842376,144.8,144.79,0.2465056]
[1723519356020,21.27362376,144.8,144.72,13.8195]
[1723519356250,21.72736721,144.79,144.72,13.8195]
[1723519356543,5.527,144.75,144.7,5.5286]
[1723519356751,5.5279,144.72,144.69,0.9363879]
[1723519357047,5.5271,144.74,144.69,6.4652879]
[1723519357235,1.72774208,144.75,144.69,0.9363879]
[1723519357746,5.5286,144.7,144.69,0.9363879]
[1723519358245,25.5286,144.7,144.69,0.9363879]
[1723519358426,5.5291,144.69,144.59,47.78]
[1723519358629,5.5291,144.69,144.64,5.5309]
[1723519358817,1.72833857,144.68,144.64,5.5309]
[1723519359034,347.36550726,144.69,144.66,5.5298]
[1723519359220,347.36550726,144.69,144.68,5.5294]
[1723519359436,347.36550726,144.69,144.62,47.78]
[1723519359770,347.36550726,144.69,144.66,5.53]
[1723519359977,352.89450726,144.69,144.64,13.8273]
[1723519360267,347.36550726,144.69,144.64,13.8273]
[1723519360445,347.36550726,144.69,144.64,19.3579]
[1723519360638,13.8178,144.75,144.47,27.696594]